Department Family,Entity,Date Paid,Expense Type,Expenses Area,Supplier Name,Transaction Reference,Total,VAT Registration Number,
Department of Health,Imperial College Healthcare NHS Trust,06/01/2022,Agency Ahps: Qualified,"Div Of Surg, Cardiov & Cancer",Reed Specialist Recruitment Ltd,4591043,"57,443.69 ",Optional requirement only,0
Department of Health,Imperial College Healthcare NHS Trust,06/01/2022,Agency Nursing: Qualified,Div Of Med & Integrated Care,Reed Specialist Recruitment Ltd,4591043,"123,021.06 ",Optional requirement only,0
Department of Health,Imperial College Healthcare NHS Trust,06/01/2022,Agency Nursing: Qualified,"Div Of Surg, Cardiov & Cancer",Reed Specialist Recruitment Ltd,4591043,"321,557.34 ",Optional requirement only,0
Department of Health,Imperial College Healthcare NHS Trust,06/01/2022,Agency Nursing: Qualified,West London Children'S Healthcare,Reed Specialist Recruitment Ltd,4591043,"32,273.66 ",Optional requirement only,0
Department of Health,Imperial College Healthcare NHS Trust,06/01/2022,Blood Products,Pathology,Nhs Blood And Transplant,45993,"318,514.62 ",Optional requirement only,0
Department of Health,Imperial College Healthcare NHS Trust,06/01/2022,Blood Products,Pathology,Nhs Blood And Transplant,45994,"166,973.52 ",Optional requirement only,0
Department of Health,Imperial College Healthcare NHS Trust,06/01/2022,Blood Products,Pathology,Nhs Blood And Transplant,45995,"72,203.89 ",Optional requirement only,0
Department of Health,Imperial College Healthcare NHS Trust,06/01/2022,Blood Products,Pathology,Nhs Blood And Transplant,46151,"318,514.62 ",Optional requirement only,0
Department of Health,Imperial College Healthcare NHS Trust,06/01/2022,Blood Products,Pathology,Nhs Blood And Transplant,46152,"318,514.62 ",Optional requirement only,0
Department of Health,Imperial College Healthcare NHS Trust,06/01/2022,Blood Products,Pathology,Nhs Blood And Transplant,46154,"166,973.52 ",Optional requirement only,0
Department of Health,Imperial College Healthcare NHS Trust,06/01/2022,Blood Products,Pathology,Nhs Blood And Transplant,46155,"72,203.89 ",Optional requirement only,0
Department of Health,Imperial College Healthcare NHS Trust,06/01/2022,Blood Products,Pathology,Nhs Blood And Transplant,46156,"72,203.89 ",Optional requirement only,0
Department of Health,Imperial College Healthcare NHS Trust,06/01/2022,Blood Products,Pathology,Nhs Blood And Transplant,46163,"166,973.52 ",Optional requirement only,0
Department of Health,Imperial College Healthcare NHS Trust,06/01/2022,Clinical Managed Service Contr,"Div Of Surg, Cardiov & Cancer",Blatchford Limited,4591366,"49,430.51 ",Optional requirement only,0
Department of Health,Imperial College Healthcare NHS Trust,06/01/2022,Clinical Managed Service Contr,Pathology,Abbott Laboratories Ltd,45413,"431,628.08 ",Optional requirement only,0
Department of Health,Imperial College Healthcare NHS Trust,06/01/2022,Computer Maintenance,Information & Comms Technology,Cerner Ltd,4579659,"57,071.96 ",Optional requirement only,0
Department of Health,Imperial College Healthcare NHS Trust,06/01/2022,Computer Maintenance,Information & Comms Technology,Cerner Ltd,4579660,"42,803.98 ",Optional requirement only,0
Department of Health,Imperial College Healthcare NHS Trust,06/01/2022,Computer Software/License,Information & Comms Technology,Cerner Ltd,4579663,"322,737.00 ",Optional requirement only,0
Department of Health,Imperial College Healthcare NHS Trust,06/01/2022,Computer Software/License,Information & Comms Technology,Softcat Plc,4591563,"79,800.00 ",Optional requirement only,0
Department of Health,Imperial College Healthcare NHS Trust,06/01/2022,Computer Software/License,Information & Comms Technology,Technest Software Solutions Ltd,4560514,"42,240.00 ",Optional requirement only,0
Department of Health,Imperial College Healthcare NHS Trust,06/01/2022,Contr Other External,Div Of Women & Clin Support,Alliance Medical Ltd,4581147,"70,800.00 ",Optional requirement only,0
Department of Health,Imperial College Healthcare NHS Trust,06/01/2022,Cx-Hh Consultant Load,Ichnt Balance Sheet,Dr Andrew Wright,4592889,"79,247.14 ",Optional requirement only,0
Department of Health,Imperial College Healthcare NHS Trust,06/01/2022,Cx-Hh Consultant Load,Ichnt Balance Sheet,Dr J. De La Fuente,4592892,"81,412.00 ",Optional requirement only,0
Department of Health,Imperial College Healthcare NHS Trust,06/01/2022,Cx-Hh Consultant Load,Ichnt Balance Sheet,Dr Jiri Pavlu,4592937,"36,276.70 ",Optional requirement only,0
Department of Health,Imperial College Healthcare NHS Trust,06/01/2022,Cx-Hh Consultant Load,Ichnt Balance Sheet,Dr Matthew Williams,4592991,"35,120.55 ",Optional requirement only,0
Department of Health,Imperial College Healthcare NHS Trust,06/01/2022,Cy Auc -Addns-Bd Purchased,Capital Summary,Cbre Managed Services Ltd,4592860,"47,572.51 ",Optional requirement only,0
Department of Health,Imperial College Healthcare NHS Trust,06/01/2022,Cy Auc -Addns-Bd Purchased,Capital Summary,Cbre Managed Services Ltd,4592865,"80,241.28 ",Optional requirement only,0
Department of Health,Imperial College Healthcare NHS Trust,06/01/2022,Cy Auc -Addns-Bd Purchased,Capital Summary,Cbre Managed Services Ltd,4592866,"31,185.04 ",Optional requirement only,0
Department of Health,Imperial College Healthcare NHS Trust,06/01/2022,Cy Auc -Addns-Bd Purchased,Capital Summary,Cbre Managed Services Ltd,4592867,"31,957.39 ",Optional requirement only,0
Department of Health,Imperial College Healthcare NHS Trust,06/01/2022,Cy Auc -Addns-Bd Purchased,Capital Summary,Cbre Managed Services Ltd,4592869,"43,804.34 ",Optional requirement only,0
Department of Health,Imperial College Healthcare NHS Trust,06/01/2022,Cy Auc -Addns-Bd Purchased,Capital Summary,Ram Building Consultancy Ltd,4578879,"34,204.96 ",Optional requirement only,0
Department of Health,Imperial College Healthcare NHS Trust,06/01/2022,Cy Auc -Addns- F&F Purchased,Capital Summary,Cuffe  Plc,4590958,"32,950.70 ",Optional requirement only,0
Department of Health,Imperial College Healthcare NHS Trust,06/01/2022,Cy Auc -Addns- P & M-Purchased,Capital Summary,Karl Storz Endoscopy (Uk) Ltd,4561649,"89,081.56 ",Optional requirement only,0
Department of Health,Imperial College Healthcare NHS Trust,06/01/2022,Cy Auc -Addns- P & M-Purchased,Capital Summary,Ptw-Uk Ltd,4559568,"95,148.00 ",Optional requirement only,0
Department of Health,Imperial College Healthcare NHS Trust,06/01/2022,Cy Auc -Addns- P & M-Purchased,Capital Summary,Vision Rt Ltd,4554209,"226,248.00 ",Optional requirement only,0
Department of Health,Imperial College Healthcare NHS Trust,06/01/2022,Cy Auc -Addns- Prof Fee)-Purch,Capital Summary,Christopher Smith Associates[Cs],4590380,"31,560.00 ",Optional requirement only,0
Department of Health,Imperial College Healthcare NHS Trust,06/01/2022,Cy Auc -Addns- Prof Fee)-Purch,Capital Summary,Eta  Projects Ltd,4592660,"38,400.00 ",Optional requirement only,0
Department of Health,Imperial College Healthcare NHS Trust,06/01/2022,Dialysers,Div Of Med & Integrated Care,Baxter Healthcare Ltd,4543814,"198,373.96 ",Optional requirement only,0
Department of Health,Imperial College Healthcare NHS Trust,06/01/2022,Dialysers,Div Of Med & Integrated Care,Baxter Healthcare Ltd,4564125,"213,800.14 ",Optional requirement only,0
Department of Health,Imperial College Healthcare NHS Trust,06/01/2022,Dialysers,Div Of Med & Integrated Care,Baxter Healthcare Ltd,4564126,"32,925.60 ",Optional requirement only,0
Department of Health,Imperial College Healthcare NHS Trust,06/01/2022,Dialysers,Div Of Med & Integrated Care,Baxter Healthcare Ltd,4564133,"64,775.20 ",Optional requirement only,0
Department of Health,Imperial College Healthcare NHS Trust,06/01/2022,Dialysers,Div Of Med & Integrated Care,Nxstage Medical Uk Ltd,4562296,"52,915.04 ",Optional requirement only,0
Department of Health,Imperial College Healthcare NHS Trust,06/01/2022,Drugs Nhs,Div Of Women & Clin Support,Nhs Business Services Authority,4590410,"26,520.93 ",Optional requirement only,0
Department of Health,Imperial College Healthcare NHS Trust,06/01/2022,Electricity,Estates Directorate,Edf Energy Customer Plc,4593092,"125,609.13 ",Optional requirement only,0
Department of Health,Imperial College Healthcare NHS Trust,06/01/2022,Electricity,Estates Directorate,Edf Energy Customer Plc,4593097,"36,175.45 ",Optional requirement only,0
Department of Health,Imperial College Healthcare NHS Trust,06/01/2022,Electricity,Estates Directorate,Edf Energy Customer Plc,4593100,"44,237.02 ",Optional requirement only,0
Department of Health,Imperial College Healthcare NHS Trust,06/01/2022,Electricity,Estates Directorate,Edf Energy Customer Plc,4593101,"258,758.74 ",Optional requirement only,0
Department of Health,Imperial College Healthcare NHS Trust,06/01/2022,Electricity,Estates Directorate,Edf Energy Customer Plc,4593102,"425,898.45 ",Optional requirement only,0
Department of Health,Imperial College Healthcare NHS Trust,06/01/2022,Equip Maint Contracts,Estates Directorate,Cbre Managed Services Ltd,4593038,"36,381.76 ",Optional requirement only,0
Department of Health,Imperial College Healthcare NHS Trust,06/01/2022,Ext Contr Logistics,Finance Directorate,Eleanor Hospital Logistics Ltd,4590939,"59,669.62 ",Optional requirement only,0
Department of Health,Imperial College Healthcare NHS Trust,06/01/2022,Ext Contr Logistics,Finance Directorate,Eleanor Hospital Logistics Ltd,4590940,"63,433.44 ",Optional requirement only,0
Department of Health,Imperial College Healthcare NHS Trust,06/01/2022,Ext Contr Logistics,Finance Directorate,Eleanor Hospital Logistics Ltd,4590941,"74,041.02 ",Optional requirement only,0
Department of Health,Imperial College Healthcare NHS Trust,06/01/2022,Jac - Stock,Balance Sheet St Marys,Roche Products Ltd,4590746,"32,501.30 ",Optional requirement only,Stock
Department of Health,Imperial College Healthcare NHS Trust,06/01/2022,Laboratory Chemicals/ Reagents,Pathology,Dnanudge Ltd,45892,"33,120.00 ",Optional requirement only,0
Department of Health,Imperial College Healthcare NHS Trust,06/01/2022,Laboratory Chemicals/ Reagents,Pathology,Illumina Cambridge Ltd,46072,"59,572.80 ",Optional requirement only,0
Department of Health,Imperial College Healthcare NHS Trust,06/01/2022,Laboratory Culture Media,Pathology,Dhl Supply Chain  (Former Excel),46150,"58,500.00 ",Optional requirement only,0
Department of Health,Imperial College Healthcare NHS Trust,06/01/2022,Med & Prof Fees (Imaging Cons),Ichnt Balance Sheet,Lindo Wing Radiology Llp,4592935,"75,493.03 ",Optional requirement only,0
Department of Health,Imperial College Healthcare NHS Trust,06/01/2022,Med & Surg Equip General,Estates Directorate,Wybone Limited,4590755,"31,672.80 ",Optional requirement only,0
Department of Health,Imperial College Healthcare NHS Trust,06/01/2022,Med & Surg Equip Leases,Div Of Med & Integrated Care,De Lage Landen Leasing Limited,4514894,"34,236.30 ",Optional requirement only,0
Department of Health,Imperial College Healthcare NHS Trust,06/01/2022,Med & Surg Maint Contract,Div Of Med & Integrated Care,University Hospital Southampton,4591644,"26,871.58 ",Optional requirement only,0
Department of Health,Imperial College Healthcare NHS Trust,06/01/2022,Minor Works,Div Of Med & Integrated Care,Cbre Managed Services Ltd,4592868,"37,117.32 ",Optional requirement only,0
Department of Health,Imperial College Healthcare NHS Trust,06/01/2022,Other Research Exp - Non-Pay,Rd Medical Directorate,London Ambulance Service Nhs Trust,4587622,"38,200.00 ",Optional requirement only,0
Department of Health,Imperial College Healthcare NHS Trust,06/01/2022,Other Research Exp - Non-Pay,Rd Medical Directorate,The Hillingdon Hospital Nhs Foundation Trust,4586396,"69,951.00 ",Optional requirement only,0
Department of Health,Imperial College Healthcare NHS Trust,06/01/2022,Other Research Exp - Non-Pay,Rd Medical Directorate,West London  Nhs Trust,4588028,"51,132.00 ",Optional requirement only,0
Department of Health,Imperial College Healthcare NHS Trust,06/01/2022,Other Research Exp - Pay,Rd Surgery & Cancer Division,Imperial College London,4590760,"36,821.00 ",Optional requirement only,0
Department of Health,Imperial College Healthcare NHS Trust,06/01/2022,Other Research Exp - Pay,Rd Surgery & Cancer Division,Imperial College London,4590762,"42,554.00 ",Optional requirement only,0
Department of Health,Imperial College Healthcare NHS Trust,06/01/2022,Recharge Out - Pay - Ic,Rd Medical Directorate,Imperial College London,4489575,"45,000.00 ",Optional requirement only,0
Department of Health,Imperial College Healthcare NHS Trust,06/07/2022,Agency Consultant,Pathology,Reed Specialist Recruitment Ltd,46210,"64,589.30 ",Optional requirement only,0
Department of Health,Imperial College Healthcare NHS Trust,06/07/2022,Agency Nursing: Qualified,Div Of Med & Integrated Care,Reed Specialist Recruitment Ltd,4595743,"58,322.97 ",Optional requirement only,0
Department of Health,Imperial College Healthcare NHS Trust,06/07/2022,Clinical Managed Service Contr,"Div Of Surg, Cardiov & Cancer",Medtronic Ltd,4590327,"1,615,162.61 ",Optional requirement only,0
Department of Health,Imperial College Healthcare NHS Trust,06/07/2022,Clinical Managed Service Contr,Pathology,Abbott Laboratories Ltd,46219,"31,973.93 ",Optional requirement only,0
Department of Health,Imperial College Healthcare NHS Trust,06/07/2022,Contr Other External,Estates Directorate,Cbre Managed Services Ltd,4593930,"772,866.90 ",Optional requirement only,0
Department of Health,Imperial College Healthcare NHS Trust,06/07/2022,Cy Auc -Addns- P & M-Purchased,Capital Summary,Aquilant Endoscopy Ltd,4595038,"155,864.76 ",Optional requirement only,0
Department of Health,Imperial College Healthcare NHS Trust,06/07/2022,Cy Auc -Addns- P & M-Purchased,Capital Summary,Ptw-Uk Ltd,4555219,"86,227.92 ",Optional requirement only,0
Department of Health,Imperial College Healthcare NHS Trust,06/07/2022,Cy Auc -Addns- P & M-Purchased,Capital Summary,Supply Chain Coordination Ltd (Sccl) ( 905),4571871,"1,786,227.82 ",Optional requirement only,0
Department of Health,Imperial College Healthcare NHS Trust,06/07/2022,Cy Auc -Addns- Prof Fee)-Purch,Capital Summary,Hok International Limited,4592313,"245,870.40 ",Optional requirement only,0
Department of Health,Imperial College Healthcare NHS Trust,06/07/2022,Equip Maint Contracts,Estates Directorate,Cbre Managed Services Ltd,4593933,"36,381.76 ",Optional requirement only,0
Department of Health,Imperial College Healthcare NHS Trust,06/07/2022,Laboratory External Tests,Pathology,Great Ormond Street Hosp For Children Nhs Ft,4456885,"34,414.88 ",Optional requirement only,0
Department of Health,Imperial College Healthcare NHS Trust,06/07/2022,Laboratory External Tests,Pathology,Great Ormond Street Hosp For Children Nhs Ft,4552264,"29,539.35 ",Optional requirement only,0
Department of Health,Imperial College Healthcare NHS Trust,06/07/2022,Med & Surg Equip Leases,"Div Of Surg, Cardiov & Cancer",Intuitive Surgical Ltd,4595703,"34,248.00 ",Optional requirement only,0
Department of Health,Imperial College Healthcare NHS Trust,06/07/2022,Other Miscellaneous,Div Of Med & Integrated Care,London Central & West Unscheduled Care Collab,4594960,"100,000.00 ",Optional requirement only,0
Department of Health,Imperial College Healthcare NHS Trust,06/07/2022,Other Transport Costs,Estates Directorate,Dhl Supply Chain  (Former Excel),4579403,"35,564.06 ",Optional requirement only,0
Department of Health,Imperial College Healthcare NHS Trust,06/07/2022,Purch Hcare Independent Sector,Div Of Med & Integrated Care,London Central & West Unscheduled Care Collab,4595800,"392,444.20 ",Optional requirement only,0
Department of Health,Imperial College Healthcare NHS Trust,06/09/2022,Agency Ahps: Qualified,"Div Of Surg, Cardiov & Cancer",Reed Specialist Recruitment Ltd,4596687,"45,180.59 ",Optional requirement only,0
Department of Health,Imperial College Healthcare NHS Trust,06/09/2022,Agency Nursing: Qualified,Div Of Med & Integrated Care,Reed Specialist Recruitment Ltd,4596687,"87,501.64 ",Optional requirement only,0
Department of Health,Imperial College Healthcare NHS Trust,06/09/2022,Agency Nursing: Qualified,"Div Of Surg, Cardiov & Cancer",Reed Specialist Recruitment Ltd,4596687,"132,267.82 ",Optional requirement only,0
Department of Health,Imperial College Healthcare NHS Trust,06/09/2022,Cy Auc -Addns- It Eqpt-Addns,Capital Summary,Gecko Technologies Ltd,4570579,"129,841.92 ",Optional requirement only,0
Department of Health,Imperial College Healthcare NHS Trust,06/09/2022,Dialysers,Div Of Med & Integrated Care,Baxter Healthcare Ltd,4579918,"38,574.60 ",Optional requirement only,0
Department of Health,Imperial College Healthcare NHS Trust,06/09/2022,Equip Maint Contracts,Pathology,Hitachi High-Tech Europe Gmbh,4596680,"30,496.80 ",Optional requirement only,0
Department of Health,Imperial College Healthcare NHS Trust,06/09/2022,Laboratory Chemicals/ Reagents,Pathology,Dnanudge Ltd,46095,"33,120.00 ",Optional requirement only,0
Department of Health,Imperial College Healthcare NHS Trust,06/09/2022,Laboratory Test Kits,Pathology,Becton Dickinson Uk Ltd,46102,"42,152.42 ",Optional requirement only,0
Department of Health,Imperial College Healthcare NHS Trust,06/09/2022,Med & Surg Equip General,Div Of Med & Integrated Care,Baxter Healthcare Ltd,4579914,"195,346.60 ",Optional requirement only,0
Department of Health,Imperial College Healthcare NHS Trust,06/09/2022,Med & Surg Equip Leases,Estates Directorate,Arjo Uk Ltd,4580046,"115,657.70 ",Optional requirement only,0
Department of Health,Imperial College Healthcare NHS Trust,06/09/2022,Postage & Carriage,Estates Directorate,Francotyp-Postalia Uk Limited T/A Teleset,4596431,"25,000.00 ",Optional requirement only,0
Department of Health,Imperial College Healthcare NHS Trust,06/09/2022,Purch Hcare Independent Sector,"Div Of Surg, Cardiov & Cancer",Homelink Healthcare Ltd,4595016,"39,795.75 ",Optional requirement only,0
Department of Health,Imperial College Healthcare NHS Trust,06/09/2022,Services Received - Nhsts,Div Of Med & Integrated Care,London North West Univ Healthcare Nhs Trust,4460061,"96,957.00 ",Optional requirement only,0
Department of Health,Imperial College Healthcare NHS Trust,06/09/2022,Services Received - Nhsts,Div Of Med & Integrated Care,London North West Univ Healthcare Nhs Trust,4460077,"282,036.00 ",Optional requirement only,0
Department of Health,Imperial College Healthcare NHS Trust,06/09/2022,Services Received - Nhsts,Div Of Med & Integrated Care,London North West Univ Healthcare Nhs Trust,4460138,"92,699.00 ",Optional requirement only,0
Department of Health,Imperial College Healthcare NHS Trust,06/09/2022,Services Received - Nhsts,Div Of Med & Integrated Care,London North West Univ Healthcare Nhs Trust,4460139,"229,445.00 ",Optional requirement only,0
Department of Health,Imperial College Healthcare NHS Trust,06/09/2022,Services Received - Nhsts,Div Of Med & Integrated Care,London North West Univ Healthcare Nhs Trust,4508291,"66,203.00 ",Optional requirement only,0
Department of Health,Imperial College Healthcare NHS Trust,06/09/2022,Services Received - Nhsts,Div Of Med & Integrated Care,London North West Univ Healthcare Nhs Trust,4521056,"48,479.00 ",Optional requirement only,0
Department of Health,Imperial College Healthcare NHS Trust,06/09/2022,Services Received - Nhsts,Div Of Med & Integrated Care,London North West Univ Healthcare Nhs Trust,4521061,"114,722.00 ",Optional requirement only,0
Department of Health,Imperial College Healthcare NHS Trust,06/09/2022,Services Received - Nhsts,Div Of Med & Integrated Care,London North West Univ Healthcare Nhs Trust,4521066,"141,018.00 ",Optional requirement only,0
Department of Health,Imperial College Healthcare NHS Trust,06/09/2022,Services Received - Nhsts,Div Of Med & Integrated Care,London North West Univ Healthcare Nhs Trust,4552748,"56,823.00 ",Optional requirement only,0
Department of Health,Imperial College Healthcare NHS Trust,06/09/2022,Services Received - Nhsts,Div Of Med & Integrated Care,London North West Univ Healthcare Nhs Trust,4552770,"114,722.00 ",Optional requirement only,0
Department of Health,Imperial College Healthcare NHS Trust,06/09/2022,Services Received - Nhsts,"Div Of Surg, Cardiov & Cancer",London North West Univ Healthcare Nhs Trust,4460075,"47,172.00 ",Optional requirement only,0
Department of Health,Imperial College Healthcare NHS Trust,6/14/2022,Acton Housing Association,Ichnt Balance Sheet,A2dominion Housing Group Ltd,4597850,"267,282.63 ",Optional requirement only,Housing Deductions
Department of Health,Imperial College Healthcare NHS Trust,6/14/2022,Bldg/Eng Equip Maint/Rep,Estates Directorate,Cbre Managed Services Ltd,4597083,"94,585.29 ",Optional requirement only,0
Department of Health,Imperial College Healthcare NHS Trust,6/14/2022,Car Salary Sacrifice,Ichnt Balance Sheet,Tuskerdirect Ltd,4595220,"97,868.56 ",Optional requirement only,0
Department of Health,Imperial College Healthcare NHS Trust,6/14/2022,Cleaning Materials,Estates Directorate,Synergy Health Managed Services Ltd,4597806,"53,679.86 ",Optional requirement only,0
Department of Health,Imperial College Healthcare NHS Trust,6/14/2022,Clinical Managed Service Contr,Pathology,Abbott Laboratories Ltd,42596,"546,040.96 ",Optional requirement only,0
Department of Health,Imperial College Healthcare NHS Trust,6/14/2022,Clinical Managed Service Contr,Pathology,Abbott Laboratories Ltd,42598,"331,240.97 ",Optional requirement only,0
Department of Health,Imperial College Healthcare NHS Trust,6/14/2022,Clinical Managed Service Contr,Pathology,Abbott Laboratories Ltd,42600,"169,858.70 ",Optional requirement only,0
Department of Health,Imperial College Healthcare NHS Trust,6/14/2022,Clinical Managed Service Contr,Pathology,Abbott Laboratories Ltd,42601,"95,862.25 ",Optional requirement only,0
Department of Health,Imperial College Healthcare NHS Trust,6/14/2022,Clinical Managed Service Contr,Pathology,Abbott Laboratories Ltd,43286,"302,520.77 ",Optional requirement only,0
Department of Health,Imperial College Healthcare NHS Trust,6/14/2022,Clinical Managed Service Contr,Pathology,Abbott Laboratories Ltd,43324,"165,916.27 ",Optional requirement only,0
Department of Health,Imperial College Healthcare NHS Trust,6/14/2022,Clinical Managed Service Contr,Pathology,Abbott Laboratories Ltd,43878,"413,541.94 ",Optional requirement only,0
Department of Health,Imperial College Healthcare NHS Trust,6/14/2022,Clinical Managed Service Contr,Pathology,Abbott Laboratories Ltd,43881,"658,030.27 ",Optional requirement only,0
Department of Health,Imperial College Healthcare NHS Trust,6/14/2022,Clinical Managed Service Contr,Pathology,Abbott Laboratories Ltd,43882,"77,071.25 ",Optional requirement only,0
Department of Health,Imperial College Healthcare NHS Trust,6/14/2022,Clinical Managed Service Contr,Pathology,Abbott Laboratories Ltd,43931,"315,756.69 ",Optional requirement only,0
Department of Health,Imperial College Healthcare NHS Trust,6/14/2022,Clinical Managed Service Contr,Pathology,Abbott Laboratories Ltd,44299,"250,454.37 ",Optional requirement only,0
Department of Health,Imperial College Healthcare NHS Trust,6/14/2022,Clinical Managed Service Contr,Pathology,Abbott Laboratories Ltd,44733,"442,259.56 ",Optional requirement only,0
Department of Health,Imperial College Healthcare NHS Trust,6/14/2022,Clinical Managed Service Contr,Pathology,Abbott Laboratories Ltd,44734,"229,581.11 ",Optional requirement only,0
Department of Health,Imperial College Healthcare NHS Trust,6/14/2022,Clinical Managed Service Contr,Pathology,Abbott Laboratories Ltd,44744,"323,979.57 ",Optional requirement only,0
Department of Health,Imperial College Healthcare NHS Trust,6/14/2022,Cy Auc -Addns-Bd Purchased,Capital Summary,Cbre Managed Services Ltd,4597083,"166,872.39 ",Optional requirement only,0
Department of Health,Imperial College Healthcare NHS Trust,6/14/2022,Cy Auc -Addns- It Eqpt-Addns,Capital Summary,Cisco Systems Finance International,4597391,"286,381.46 ",Optional requirement only,0
Department of Health,Imperial College Healthcare NHS Trust,6/14/2022,Cy Auc -Addns- P & M-Purchased,Capital Summary,Supply Chain Coordination Ltd (Sccl) ( 905),4571872,"190,779.00 ",Optional requirement only,0
Department of Health,Imperial College Healthcare NHS Trust,6/14/2022,Ext Contr Laundry,Estates Directorate,Synergy Health Managed Services Ltd,4597803,"64,588.54 ",Optional requirement only,0
Department of Health,Imperial College Healthcare NHS Trust,6/14/2022,Ext Contr Laundry,Estates Directorate,Synergy Health Managed Services Ltd,4597804,"59,288.84 ",Optional requirement only,0
Department of Health,Imperial College Healthcare NHS Trust,6/14/2022,Ext Contr Laundry,Estates Directorate,Synergy Health Managed Services Ltd,4597805,"57,414.92 ",Optional requirement only,0
Department of Health,Imperial College Healthcare NHS Trust,6/14/2022,Med & Surg Equip General,Div Of Women & Clin Support,Alliance Medical Ltd,4594682,"87,000.00 ",Optional requirement only,0
Department of Health,Imperial College Healthcare NHS Trust,6/14/2022,Med & Surg Equip General,Estates Directorate,Pentax Uk Ltd,4530805,"35,164.80 ",Optional requirement only,0
Department of Health,Imperial College Healthcare NHS Trust,6/14/2022,Med & Surg Maint Contract,"Div Of Surg, Cardiov & Cancer",Supply Chain Coordination Ltd (Sccl) ( 201),4590876,"70,128.00 ",Optional requirement only,0
Department of Health,Imperial College Healthcare NHS Trust,6/14/2022,Other Transport Costs,Estates Directorate,Dhl Supply Chain  (Former Excel),4596859,"35,564.06 ",Optional requirement only,0
Department of Health,Imperial College Healthcare NHS Trust,6/14/2022,Other Transport Costs,Pathology,Dhl Supply Chain  (Former Excel),46397,"76,719.26 ",Optional requirement only,0
Department of Health,Imperial College Healthcare NHS Trust,6/14/2022,Other Transport Costs,Pathology,Dhl Supply Chain  (Former Excel),46398,"144,110.84 ",Optional requirement only,0
Department of Health,Imperial College Healthcare NHS Trust,6/14/2022,Other Transport Costs,Pathology,Dhl Supply Chain  (Former Excel),46401,"36,246.94 ",Optional requirement only,0
Department of Health,Imperial College Healthcare NHS Trust,6/14/2022,Thames Valley Housing Assoc,Ichnt Balance Sheet,Metropolitan Thames Valley,4597851,"115,443.09 ",Optional requirement only,Housing Deductions
Department of Health,Imperial College Healthcare NHS Trust,6/16/2022,Computer Maintenance,Information & Comms Technology,Cerner Ltd,4597980,"42,803.98 ",Optional requirement only,0
Department of Health,Imperial College Healthcare NHS Trust,6/16/2022,Computer Maintenance,Information & Comms Technology,Cerner Ltd,4597982,"57,071.96 ",Optional requirement only,0
Department of Health,Imperial College Healthcare NHS Trust,6/16/2022,Computer Software/License,Information & Comms Technology,Cerner Ltd,4577189,"110,536.34 ",Optional requirement only,0
Department of Health,Imperial College Healthcare NHS Trust,6/16/2022,Computer Software/License,Information & Comms Technology,Cerner Ltd,4597976,"322,737.00 ",Optional requirement only,0
Department of Health,Imperial College Healthcare NHS Trust,6/16/2022,Computer Software/License,Information & Comms Technology,Nuance Communications International Bvba,4595683,"110,538.00 ",Optional requirement only,0
Department of Health,Imperial College Healthcare NHS Trust,6/16/2022,Contr Refuse & Clin Waste,Estates Directorate,Grundon Waste Management Ltd,4581284,"38,454.05 ",Optional requirement only,0
Department of Health,Imperial College Healthcare NHS Trust,6/16/2022,Contr Refuse & Clin Waste,Estates Directorate,Grundon Waste Management Ltd,4597731,"42,039.23 ",Optional requirement only,0
Department of Health,Imperial College Healthcare NHS Trust,6/16/2022,Contr Refuse & Clin Waste,Estates Directorate,Grundon Waste Management Ltd,4597732,"41,053.72 ",Optional requirement only,0
Department of Health,Imperial College Healthcare NHS Trust,6/16/2022,Cy Auc -Addns-Bd Purchased,Capital Summary,Breathe Energy Ltd,4585088,"2,221,183.00 ",Optional requirement only,0
Department of Health,Imperial College Healthcare NHS Trust,6/16/2022,Cy Auc -Addns-Bd Purchased,Capital Summary,Emsc (Uk) Ltd,4561031,"654,041.28 ",Optional requirement only,0
Department of Health,Imperial College Healthcare NHS Trust,6/16/2022,Cy Auc -Addns-Bd Purchased,Capital Summary,Emsc (Uk) Ltd,4578146,"163,510.32 ",Optional requirement only,0
Department of Health,Imperial College Healthcare NHS Trust,6/16/2022,Drugs Pbr Excluded,"Div Of Surg, Cardiov & Cancer",Healthcare At Home Ltd,4593118,"30,000.00 ",Optional requirement only,0
Department of Health,Imperial College Healthcare NHS Trust,6/16/2022,Drugs Pbr Excluded,"Div Of Surg, Cardiov & Cancer",Healthcare At Home Ltd,4593120,"52,500.00 ",Optional requirement only,0
Department of Health,Imperial College Healthcare NHS Trust,6/16/2022,Drugs Pbr Excluded,"Div Of Surg, Cardiov & Cancer",Healthcare At Home Ltd,4593124,"26,250.00 ",Optional requirement only,0
Department of Health,Imperial College Healthcare NHS Trust,6/16/2022,Laboratory Equipment,Pathology,Promega Uk Ltd,46577,"40,443.00 ",Optional requirement only,0
Department of Health,Imperial College Healthcare NHS Trust,6/16/2022,Laboratory Equipment,Pathology,Promega Uk Ltd,46582,"40,443.00 ",Optional requirement only,0
Department of Health,Imperial College Healthcare NHS Trust,6/16/2022,Laboratory Equipment,Pathology,Promega Uk Ltd,46588,"40,443.00 ",Optional requirement only,0
Department of Health,Imperial College Healthcare NHS Trust,6/16/2022,Med & Surg Equip General,Div Of Med & Integrated Care,Nxstage Medical Uk Ltd,4578251,"43,772.27 ",Optional requirement only,0
Department of Health,Imperial College Healthcare NHS Trust,6/16/2022,Med & Surg Maint Contract,Div Of Women & Clin Support,Insightec Ltd,4549905,"28,500.00 ",Optional requirement only,0
Department of Health,Imperial College Healthcare NHS Trust,6/16/2022,Med & Surg Maint Contract,Estates Directorate,Ge Medical Systems Limited,4595664,"768,322.80 ",Optional requirement only,0
Department of Health,Imperial College Healthcare NHS Trust,6/16/2022,Other Gen Supplies & Srv,"Div Of Surg, Cardiov & Cancer",Acumentice Limited,4598176,"195,336.00 ",Optional requirement only,0
Department of Health,Imperial College Healthcare NHS Trust,6/16/2022,Other Research Exp - Non-Pay,Rd Medical Directorate,Imperial College London,4596411,"1,125,000.00 ",Optional requirement only,0
Department of Health,Imperial College Healthcare NHS Trust,6/16/2022,Other Research Exp - Pay,Rd Surgery & Cancer Division,Imperial College London,4587712,"25,839.04 ",Optional requirement only,0
Department of Health,Imperial College Healthcare NHS Trust,6/16/2022,Srvcsrecd-Other Nhs,Pathology,Micropathology Ltd,4595311,"28,669.00 ",Optional requirement only,0
Department of Health,Imperial College Healthcare NHS Trust,6/20/2022,Income Tax Paye,Ichnt Balance Sheet,Hmrc Government Employers Account,4599047,"10,712,672.63 ",Optional requirement only,0
Department of Health,Imperial College Healthcare NHS Trust,6/20/2022,Income Tax Paye,Ichnt Balance Sheet,Hmrc Government Employers Account,4599048,"11,958,665.93 ",Optional requirement only,0
Department of Health,Imperial College Healthcare NHS Trust,6/21/2022,Clinical Managed Service Contr,Pathology,The Hillingdon Hospital Nhs Foundation Trust,4596730,"243,667.00 ",Optional requirement only,0
Department of Health,Imperial College Healthcare NHS Trust,6/21/2022,Computer Hardware Purch,"Div Of Surg, Cardiov & Cancer",Insight Direct (Uk) Ltd,4584579,"30,636.48 ",Optional requirement only,0
Department of Health,Imperial College Healthcare NHS Trust,6/21/2022,Computer Software/License,Information & Comms Technology,Ukcloud Ltd,4595323,"56,683.96 ",Optional requirement only,0
Department of Health,Imperial College Healthcare NHS Trust,6/21/2022,Conferences And Seminars,Nursing Directorate,Buckinghamshire New University,4591030,"49,205.00 ",Optional requirement only,0
Department of Health,Imperial College Healthcare NHS Trust,6/21/2022,Consultancy Fees,"Div Of Surg, Cardiov & Cancer",Acumentice Limited,4595909,"250,483.44 ",Optional requirement only,0
Department of Health,Imperial College Healthcare NHS Trust,6/21/2022,Consultancy Fees,Press & Communications,Cdw Ltd,4599305,"72,371.52 ",Optional requirement only,0
Department of Health,Imperial College Healthcare NHS Trust,6/21/2022,Consultancy Fees,Press & Communications,Niche Health And Social Care Consulting Ltd,4559560,"35,640.00 ",Optional requirement only,0
Department of Health,Imperial College Healthcare NHS Trust,6/21/2022,Cy Auc -Addns-Bd Purchased,Capital Summary,Breathe Energy Ltd,4585089,"301,015.21 ",Optional requirement only,0
Department of Health,Imperial College Healthcare NHS Trust,6/21/2022,Cy Auc -Addns-Bd Purchased,Capital Summary,Breathe Energy Ltd,4598890,"167,356.68 ",Optional requirement only,0
Department of Health,Imperial College Healthcare NHS Trust,6/21/2022,Cy Auc -Addns-Bd Purchased,Capital Summary,Breathe Energy Ltd,4598891,"1,885,387.54 ",Optional requirement only,0
Department of Health,Imperial College Healthcare NHS Trust,6/21/2022,Cy Auc -Addns-Bd Purchased,Capital Summary,Eta  Projects Ltd,4593955,"95,029.21 ",Optional requirement only,0
Department of Health,Imperial College Healthcare NHS Trust,6/21/2022,Cy Auc -Addns-Bd Purchased,Capital Summary,Playfords Limited,4595265,"57,347.35 ",Optional requirement only,0
Department of Health,Imperial College Healthcare NHS Trust,6/21/2022,Cy Auc -Addns- P & M-Purchased,Capital Summary,Supply Chain Coordination Ltd (Sccl) ( 905),4602743,"94,011.98 ",Optional requirement only,0
Department of Health,Imperial College Healthcare NHS Trust,6/21/2022,Electricity,Estates Directorate,Edf Energy Customer Plc,4600525,"436,647.57 ",Optional requirement only,0
Department of Health,Imperial College Healthcare NHS Trust,6/21/2022,Electricity,Estates Directorate,Edf Energy Customer Plc,4600526,"128,984.08 ",Optional requirement only,0
Department of Health,Imperial College Healthcare NHS Trust,6/21/2022,Electricity,Estates Directorate,Edf Energy Customer Plc,4600527,"321,456.05 ",Optional requirement only,0
Department of Health,Imperial College Healthcare NHS Trust,6/21/2022,Electricity,Estates Directorate,Edf Energy Customer Plc,4600534,"44,476.79 ",Optional requirement only,0
Department of Health,Imperial College Healthcare NHS Trust,6/21/2022,Electricity,Estates Directorate,Edf Energy Customer Plc,4600536,"48,620.15 ",Optional requirement only,0
Department of Health,Imperial College Healthcare NHS Trust,6/21/2022,Ext Contract - Patient Travel,Estates Directorate,Falck Uk Ambulance Service Limited,4582065,"126,977.80 ",Optional requirement only,0
Department of Health,Imperial College Healthcare NHS Trust,6/21/2022,Ext Contract - Patient Travel,Estates Directorate,Falck Uk Ambulance Service Limited,4597504,"79,969.98 ",Optional requirement only,0
Department of Health,Imperial College Healthcare NHS Trust,6/21/2022,Ext Contract - Patient Travel,Estates Directorate,Falck Uk Ambulance Service Limited,4597700,"126,977.80 ",Optional requirement only,0
Department of Health,Imperial College Healthcare NHS Trust,6/21/2022,Jac - Stock,Balance Sheet St Marys,Bms Pharmaceuticals Ltd (0034),4603908,"36,101.52 ",Optional requirement only,Stock
Department of Health,Imperial College Healthcare NHS Trust,6/21/2022,Jac - Stock,Balance Sheet St Marys,Octapharma Ltd,4603827,"25,800.00 ",Optional requirement only,Stock
Department of Health,Imperial College Healthcare NHS Trust,6/21/2022,Med & Surg Equip General,"Div Of Surg, Cardiov & Cancer",Supply Chain Coordination Ltd (Sccl) ( 201),4579393,"62,007.24 ",Optional requirement only,0
Department of Health,Imperial College Healthcare NHS Trust,6/21/2022,Other Research Exp - Non-Pay,Rd Medical Directorate,Hounslow Medical Centre,4600869,"60,000.00 ",Optional requirement only,0
Department of Health,Imperial College Healthcare NHS Trust,6/21/2022,Other Research Exp - Pay,Rdwomen And Children Division,London School Of Eco & Polit Sc,4569770,"45,319.54 ",Optional requirement only,0
Department of Health,Imperial College Healthcare NHS Trust,6/21/2022,Provisions,Estates Directorate,Brakes Bros Ltd,4594948,"152,058.06 ",Optional requirement only,0
Department of Health,Imperial College Healthcare NHS Trust,6/21/2022,Srvcsrecd-Other Nhs,Finance Directorate,Salford Royal Nhs Foundation Trust,4590756,"27,453.00 ",Optional requirement only,0
Department of Health,Imperial College Healthcare NHS Trust,6/23/2022,Bldg/Eng Equip Maint/Rep,"Div Of Surg, Cardiov & Cancer",Cbre Managed Services Ltd,4605833,"64,040.19 ",Optional requirement only,0
Department of Health,Imperial College Healthcare NHS Trust,6/23/2022,Clinical Managed Service Contr,Pathology,Chelsea And  Westminster Hospital Nhs Ft,45751,"25,204.68 ",Optional requirement only,0
Department of Health,Imperial College Healthcare NHS Trust,6/23/2022,Clinical Managed Service Contr,Pathology,Chelsea And  Westminster Hospital Nhs Ft,45753,"31,633.91 ",Optional requirement only,0
Department of Health,Imperial College Healthcare NHS Trust,6/23/2022,Cnst Contributions,Central Costs,Nhs Resolution,4605819,"3,527,487.40 ",Optional requirement only,0
Department of Health,Imperial College Healthcare NHS Trust,6/23/2022,Cy Auc -Addns-Bd Purchased,Capital Summary,Amber Group Limited,4599051,"65,704.71 ",Optional requirement only,0
Department of Health,Imperial College Healthcare NHS Trust,6/23/2022,Cy Auc -Addns-Bd Purchased,Capital Summary,Amber Group Limited,4599053,"30,049.05 ",Optional requirement only,0
Department of Health,Imperial College Healthcare NHS Trust,6/23/2022,Cy Auc -Addns-Bd Purchased,Capital Summary,Cbre Managed Services Ltd,4605833,"1,304,187.45 ",Optional requirement only,0
Department of Health,Imperial College Healthcare NHS Trust,6/23/2022,Cy Auc -Addns- P & M-Purchased,Capital Summary,Ge Medical Systems Limited,4605277,"67,800.00 ",Optional requirement only,0
Department of Health,Imperial College Healthcare NHS Trust,6/23/2022,Drugs Pbr Excluded,"Div Of Surg, Cardiov & Cancer",Healthcare At Home Ltd,4603568,"40,960.00 ",Optional requirement only,0
Department of Health,Imperial College Healthcare NHS Trust,6/23/2022,Hosting Service Expenses,Nhs Elect,Nhs Greater East Midlands Csu,4604012,"38,667.00 ",Optional requirement only,0
Department of Health,Imperial College Healthcare NHS Trust,6/23/2022,Hosting Service Expenses,Nhs Elect,Nhs Greater East Midlands Csu,4604179,"42,323.00 ",Optional requirement only,0
Department of Health,Imperial College Healthcare NHS Trust,6/23/2022,Insurance Costs,Office Of Chief Executive,Nhs Resolution,4605819,"44,180.30 ",Optional requirement only,0
Department of Health,Imperial College Healthcare NHS Trust,6/23/2022,Isotopes,Div Of Women & Clin Support,Curium Pharma Uk Ltd,4597742,"49,818.00 ",Optional requirement only,0
Department of Health,Imperial College Healthcare NHS Trust,6/23/2022,Jac - Stock,Balance Sheet St Marys,Aah Pharmaceuticals Limited,4603259,"33,291.00 ",Optional requirement only,Stock
Department of Health,Imperial College Healthcare NHS Trust,6/23/2022,Lease Rents,Estates Directorate,London Borough Of Hammersmith/Fulham,4601402,"113,572.67 ",Optional requirement only,0
Department of Health,Imperial College Healthcare NHS Trust,6/23/2022,Med & Surg Equip General,"Div Of Surg, Cardiov & Cancer",Distinctive Medical Products Ltd,4586680,"56,061.60 ",Optional requirement only,0
Department of Health,Imperial College Healthcare NHS Trust,6/23/2022,Med & Surg Maint Contract,Div Of Med & Integrated Care,Fujifilm Healthcare Uk Ltd,4592132,"75,211.20 ",Optional requirement only,0
Department of Health,Imperial College Healthcare NHS Trust,6/23/2022,Other Research Exp - Pay,Rd Medical Directorate,London North West Univ Healthcare Nhs Trust,4603814,"37,125.00 ",Optional requirement only,0
Department of Health,Imperial College Healthcare NHS Trust,6/23/2022,Printing Costs,Estates Directorate,Technical Initiatives Uk Ltd [Cs],4597971,"42,264.00 ",Optional requirement only,0
Department of Health,Imperial College Healthcare NHS Trust,6/23/2022,Printing Costs,Estates Directorate,Technical Initiatives Uk Ltd [Cs],4597972,"30,600.00 ",Optional requirement only,0
Department of Health,Imperial College Healthcare NHS Trust,6/23/2022,Rates,Estates Directorate,City Of Westminster,4605824,"160,132.00 ",Optional requirement only,0
Department of Health,Imperial College Healthcare NHS Trust,6/23/2022,Rates,Estates Directorate,London Borough Hammersmith & Fulham,4605805,"146,743.00 ",Optional requirement only,0
Department of Health,Imperial College Healthcare NHS Trust,6/23/2022,Rates,Estates Directorate,London Borough Hammersmith & Fulham,4605806,"129,010.00 ",Optional requirement only,0
Department of Health,Imperial College Healthcare NHS Trust,6/23/2022,Srvcsrecd-Other Nhs,Pathology,Micropathology Ltd,46404,"45,849.00 ",Optional requirement only,0
,,,,,,Sum:,"60,835,121.69 ",,0
,,,,,Count:,208,,,0
